Workbook

Sheet 記入要領
Q8: 請 求 書 | AF8: 請求者名 | AH8: 住所 | AJ8: 長野県飯田市〇〇123-1
A11: 株式会社トライネット 御中
AH12: 社名 | AJ12: 〇〇〇〇株式会社
Q16: 2026-03-31 | AH16: 代表者 | AJ16: 〇○ ○○
A17: 下記の通り請求致します
AH19: 電話 | AJ19: 0265-XX-XXXX
A23: 工事 コード | N23: 工事 名称 | P23: ○○水力変電所 設備改修のうち土木工事 | AF23: 取引先コード | AH23: 1234567
BH25: =IF(AND(AH23="",AP29=""),"",IF(AP29<>"","","✓")) -> 
A29: 請 求 内 訳 | C29: 名 称 | K29: 税 | L29: 数 量 | N29: 単 位 | P29: 単 価 | S29: 税 抜 金 額 | X29: 注文書分請求明細 （消費税込） | AL29: 登録番号 | AO29: T | AP29: 1234567890123 | AY29: 未登録
C32: コンパネ 12mm 3尺×6尺 | L32: 10 | N32: 枚 | P32: 2500 | S32: =L32*P32 -> 25000 | X32: 注 文 番 号 | AC32: 123000-01 | AL32: 備考
B35: =IF(AC32="","","✔") -> ✔ | C35: 異型アンカーピン D10×200×30 | L35: 50 | N35: 本 | P35: 30 | S35: =L35*P35 -> 1500 | X35: 注文金額 | AB35: A | AC35: 1000000
B38: 注文書有 | C38: １トンコンテナバック 丸型 | L38: 4 | N38: ケ | P38: 1000 | S38: =L38*P38 -> 4000
C41: 生コン N24-18-25 | L41: 7.2 | N41: ㎥ | P41: 25000 | S41: =L41*P41 -> 180000 | X41: 既請求額 | AB41: B | AC41: 200000
C44: 水 | K44: ※ | L44: 1 | N44: 式 | P44: 5000 | S44: =L44*P44 -> 5000
S47: =L47*P47 -> 0 | X47: 当月差引額 | AB47: C
S50: =L50*P50 -> 0
S53: =L53*P53 -> 0 | X53: 今回請求額 | AB53: D | AC53: =IF($AC$35="","",AP56) -> 236950
B54: =IF(AND(S83=0,AC32=""),"",IF(AC32="","✔","")) -> 
S56: =L56*P56 -> 0 | AL56: 今 回 請 求 合 計 （消費税込） | AP56: =SUM(S77:W85) -> 236950
B59: =IF(AC32="","✔","") ->  | S59: =L59*P59 -> 0 | X59: 注文残高Ａ-Ｂ-Ｄ | AC59: =IF(AC35="","",AC35-AC41-AC53) -> 563050
B62: 注文書無 | S62: =L62*P62 -> 0
S65: =L65*P65 -> 0
S68: =L68*P68 -> 0
S71: =L71*P71 -> 0
S74: =L74*P74 -> 0
K77: 合 計 （消 費 税 抜） | S77: =SUM(S32:W76) -> 215500
K80: 消 費 税 | P80: 0.1 | S80: =ROUND(0.1*(SUMIF(K32:K76,"",S32:W76)),0) -> 21050
K83: 消 費 税 | P83: 0.08 | R83: ※ | S83: =ROUND(0.08*(SUMIF(K32:K76,R83,S32:W76)),0) -> 400
A87: ※印は軽減税率対象

Sheet 請求書 (1)
AR3: 請求書番号 | AW3: =SUBSTITUTE(RIGHT(CELL("filename",A1),LEN(CELL("filename",A1))-FIND("(",CELL("filename",A1))),")","") -> 1 | AY3: ／ | AZ3: 1
Q8: 請 求 書 | AF8: 請求者名 | AH8: 住所
A11: 株式会社トライネット 御中
AH12: 社名
AH16: 代表者
A17: 下記の通り請求致します
AH19: 電話
A23: 工事 コード | N23: 工事 名称 | AF23: 取引先コード
A29: 請 求 内 訳 | C29: 名 称 | K29: 税 | L29: 数 量 | N29: 単 位 | P29: 単 価 | S29: 税 抜 金 額 | X29: 注文書分請求明細 （消費税込） | AL29: 登録番号 | AO29: T | AY29: 未登録
S32: =L32*P32 -> 0 | X32: 注 文 番 号 | AL32: 備考
B35: =IF(AC32="","","✔") ->  | S35: =L35*P35 -> 0 | X35: 注文金額 | AB35: A
B38: 注文書有 | S38: =L38*P38 -> 0
S41: =L41*P41 -> 0 | X41: 既請求額 | AB41: B
S44: =L44*P44 -> 0
S47: =L47*P47 -> 0 | X47: 当月差引額 | AB47: C
S50: =L50*P50 -> 0
S53: =L53*P53 -> 0 | X53: 今回請求額 | AB53: D | AC53: =IF($AC$35="","",AP56) -> 
B54: =IF(AND(S83=0,AC32=""),"",IF(AC32="","✔","")) -> 
S56: =L56*P56 -> 0 | AL56: 今 回 請 求 合 計 （消費税込） | AP56: =SUM(S77:W85) -> 0
B59: =IF(AC32="","✔","") -> ✔ | S59: =L59*P59 -> 0 | X59: 注文残高Ａ-Ｂ-Ｄ | AC59: =IF(AC35="","",AC35-AC41-AC53) -> 
B62: 注文書無 | S62: =L62*P62 -> 0
S65: =L65*P65 -> 0
S68: =L68*P68 -> 0
S71: =L71*P71 -> 0
S74: =L74*P74 -> 0
K77: 合 計 （消 費 税 抜） | S77: =SUM(S32:W76) -> 0
K80: 消 費 税 | P80: 0.1 | S80: =ROUND(0.1*(SUMIF(K32:K76,"",S32:W76)),0) -> 0
K83: 消 費 税 | P83: 0.08 | R83: ※ | S83: =ROUND(0.08*(SUMIF(K32:K76,R83,S32:W76)),0) -> 0
A87: ※印は軽減税率対象

Sheet 内訳明細書 (1)
A1: 日 付 | B1: 品 名 | C1: 数 量 | D1: 単 位 | E1: 単 価 | F1: 税 抜 金 額 | G1: 備 考
AZ3: 2
A64: 合 計（消 費 税 抜） | F64: =SUM(F2:F63) -> 0
